Cogmind - Beta 16.1 @@@ ROGUE MODE // 2026.04.26 @ 08:02:59 Player: kareds Result: Destroyed by G-34 Mercenary with Small Laser Performance ------------- Evolutions (0) 0 Regions Visited (4) 800 Robots Destroyed (32) 160 Value Destroyed (665) 665 Prototype IDs (0) 0 Alien Tech Used (0) 0 Bonus (0) 0 TOTAL SCORE: 1625 Bonus ------- None Cogmind --------- Core Integrity 0/250 Matter 264/300 Energy 100/100 System Corruption 0% Temperature Cool (6) Movement Core (100) Ox1 Location -9/Mines Parts ------- > --- POWER (1) -------- (None) > --- PROPULSION (2) --- (None) > --- UTILITY (2) ------ (None) > --- WEAPON (2) ------- Assault Rifle Spear > --- INVENTORY (5) ---- Weight Redist. System Improved Field Recycling Unit (53) Mining Laser Peak State ------------ > --- POWER ------------ Improved Ion Engine > --- PROPULSION ------- Light Treads Light Treads > --- UTILITY ---------- Makeshift System Restoration Module Makeshift System Restoration Module > --- WEAPON ----------- Grenade Launcher Spear > --- INVENTORY -------- Weight Redist. System Seismic Detector Makeshift Cloaking Device Assault Rifle Mining Laser [Rating: 18] Favorites ----------- Power Improved Ion Engine Engine Improved Ion Engine Propulsion Light Treads Treads Light Treads Utility Seismic Detector Device Seismic Detector Storage Small Storage Unit Processor Targeting Computer Weapon Medium Laser Energy Gun Medium Laser Ballistic Gun Light Assault Rifle Launcher Grenade Launcher Special Weapon Mining Laser Slashing Weapon Mining Claw Piercing Weapon Spear Build | -11 -10 -10 -10 -9 ------- Run | Yrd Mat Min Exi Min Slots Evolved . | . . . . . Power . | . . . . . Propulsion . | . . . . . Utility . | . . . . . Weapon . | . . . . . Parts Attached 26 | 7 4 6 5 4 Power 3 | 1 1 1 . . Engine 3 | 1 1 1 . . Core . | . . . . . Reactor . | . . . . . Propulsion 5 | 2 . 1 2 . Treads 5 | 2 . 1 2 . Leg . | . . . . . Wheel . | . . . . . Hover . | . . . . . Flight . | . . . . . Utility 9 | 2 . 2 2 3 Device 6 | 1 . . 2 3 Storage 1 | 1 . . . . Processor 2 | . . 2 . . Hackware . | . . . . . Protection . | . . . . . Artifact . | . . . . . Weapon 9 | 2 3 2 1 1 Energy Gun 2 | 1 1 . . . Energy Cannon . | . . . . . Ballistic Gun 3 | 1 1 1 . . Ballistic Cannon . | . . . . . Launcher 1 | . 1 . . . Special Weapon 1 | . . 1 . . Impact Weapon . | . . . . . Slashing Weapon 1 | . . . 1 . Piercing Weapon 1 | . . . . 1 Special Melee Weapon . | . . . . . Unidentified Prototypes . | . . . . . Parts Lost 9 | . . 3 . 6 Power 2 | . . 1 . 1 Propulsion 4 | . . 2 . 2 Utility 2 | . . . . 2 Weapon 1 | . . . . 1 Highest Loss Streak 6 | . . 1 . 6 To Critical Strikes . | . . . . . Average Backups 5 | . 6 5 4 4 Power . | . . . . . Propulsion . | . 1 . . . Utility 2 | . 3 2 1 2 Weapon 2 | . . 2 2 1 Tool/Special . | . . . . . Unused Backups 9 | . 2 5 1 1 Power . | . . . . . Propulsion 2 | . 2 . . . Utility 6 | . . 4 1 1 Weapon . | . . . . . Tool/Special 1 | . . 1 . . Average Slot Usage (%) 94 | . 100 92 92 96 Engine 13 | . 14 13 14 13 Treads 23 | . 28 20 20 27 Device 12 | . 14 5 12 26 Storage 4 | . 14 2 . . Processor 10 | . . 20 15 . Energy Gun 8 | . 14 11 . . Ballistic Gun 10 | . 13 14 7 1 Launcher 4 | . . 1 8 11 Special Weapon 1 | . . . 4 . Slashing Weapon 1 | . . . 7 2 Piercing Weapon 1 | . . . . 11 Peak Build Rating 18 | 7 7 8 14 18 Average Rating 8 | 5 6 7 10 14 On Entrance 7 | . 7 7 7 14 Avg Prop Armor Cover (%) . | . . . . . Naked Turns . | . . . . . Heaviest Build 29 | 14 16 16 20 29 Greatest Support 40 | 40 40 40 40 40 Greatest Overweight (x) 1 | 1 . . . . Average Overweight (x) . | . . . . . Largest Inventory Capacity 8 | 8 8 8 5 5 Average Capacity 6 | 7 8 5 5 5 Most Carried 8 | 1 8 8 5 5 Average Carried 5 | . 6 5 4 4 Final Capacity 8 | 8 8 5 5 5 Final Carried 8 | 1 8 5 4 3 Class Distribution -------------------- 97% | Mutant Dominant Class ---------------- Mutant | -10/Materials Mutant | -10/Mines Mutant | -10/Exiles Mutant | -9/Mines Resources | -11 -10 -10 -10 -9 ----------- Run | Yrd Mat Min Exi Min Matter Collected 963 | 214 232 308 93 116 Remotely . | . . . . . Salvage Created 1096 | 108 326 382 163 117 Parts 63 | 4 21 22 8 8 Haulers Intercepted . | . . . . . Recyclers Shooed . | . . . . . Parts Field Recycled 4 | . . . . 4 Retrieved Matter 89 | . . . . 89 Parts Self-Destructed . | . . . . . Prevented . | . . . . . Parts Restored . | . . . . . Kills | -11 -10 -10 -10 -9 ------- Run | Yrd Mat Min Exi Min Combat Hostiles Destroyed 24 | . 9 10 . 5 Melee 2 | . . . . 2 Guns 13 | . 7 6 . . AOE 9 | . 2 4 . 3 Classes Destroyed 9 | 2 5 2 . . Worker 2 | . 1 1 . . Tunneler 3 | 1 . 2 . . Recycler 3 | 1 . 2 . . Operator 1 | . 1 . . . Watcher 1 | . 1 . . . Swarmer 9 | . 3 3 . 3 Grunt 12 | . 6 4 . 2 Sentry 1 | . . 1 . . Assembled 2 | . . 2 . . Best Kill Streak 4 | 1 4 4 . 3 Combat Bots Only 4 | . 4 2 . 3 Max Kills in Single Turn 3 | 1 2 3 . 3 Gunslinging . | . . . . . Exploded 3 | . 1 1 . 3 Melee 1 | . . . . 1 Uniques/NPCs Destroyed . | . . . . . Combat | -11 -10 -10 -10 -9 -------- Run | Yrd Mat Min Exi Min Hostile Shots Fired 178 | . 28 78 . 72 Missed 48 | . 10 17 . 21 Hits 130 | . 18 61 . 51 Melee 1 | . . 1 . . Projectile 129 | . 18 60 . 51 Critical Strikes 6 | . . 2 . 4 Damage Taken 1478 | . 219 580 . 679 Core 256 | . 10 111 . 135 Absorbed by Shields . | . . . . . Core Remaining (%) 100 | 100 . . . . Volleys Fired 104 | 10 42 38 . 14 Largest 2 | 2 2 2 . 1 Hottest 100 | 70 70 100 . 30 Shots Fired 179 | 20 81 62 2 14 Gun 161 | 20 78 51 1 11 Cannon . | . . . . . Launcher 14 | . 3 7 1 3 Special 4 | . . 4 . . Kinetic 87 | 10 39 26 1 11 Thermal 78 | 10 39 29 . . Explosive 14 | . 3 7 1 3 Electromagnetic . | . . . . . Robot Hit Streak 10 | 4 8 8 9 10 Robot Miss Streak 6 | 2 6 3 . 1 Penetration Max . | . . . . . Secondary Targets 2 | . . 2 . . Max Gunslinging Chain 1 | . . 1 . . Shots Hit Robots 122 | 12 43 37 10 20 Core Hits 64 | 4 23 24 6 7 Critical Kills . | . . . . . Critical Parts Destroyed . | . . . . . Critical Strikes 6 | . 4 1 . 1 Burn 5 | . 4 1 . . Impale 1 | . . . . 1 Melee Attacks 22 | . . . 9 13 Impact . | . . . . . Slashing 9 | . . . 9 . Piercing 13 | . . . . 13 Sneak Attacks 1 | . . . . 1 Combat Hostiles . | . . . . . Follow-up Attacks . | . . . . . Damage Inflicted 2503 | 118 572 763 504 546 Guns 1024 | 118 443 344 10 109 Cannons . | . . . . . Explosions 706 | . 129 419 . 158 Melee 773 | . . . 494 279 Ramming . | . . . . . Kinetic 469 | 42 198 110 10 109 Thermal 555 | 76 245 234 . . Explosive 706 | . 129 419 . 158 Electromagnetic . | . . . . . Impact . | . . . . . Slashing 494 | . . . 494 . Piercing 279 | . . . . 279 Highest Corruption 8 | . 8 8 8 3 Average Corruption 7 | . 6 8 7 1 Corruption Purged 8 | . . . 5 3 Corruption Blocked . | . . . . . Effects 81 | . 10 46 24 1 Message Errors 20 | . 3 13 4 . Matter Fused 19 | . 2 7 10 . Heat Flow Errors 8 | . . 6 2 . Energy Discharges 8 | . 2 2 4 . Data Loss (minor) 9 | . . 7 2 . Data Loss (major) 7 | . 1 5 . 1 Misfires 2 | . . . 2 . Alerts 5 | . 2 3 . . Weapon Failures 3 | . . 3 . . Overload Shots . | . . . . . Overflow Damage 109 | . . . 58 51 Projectiles . | . . . . . Explosions . | . . . . . Melee 109 | . . . 58 51 Knockbacks . | . . . . . Impact . | . . . . . Kinetic . | . . . . . Secondary . | . . . . . Self-Inflicted Damage 34 | . . . . 34 Shots 2 | . . . . 2 Rammed 2 | . 2 . . . Targets Rammed 2 | . 2 . . . Kicked . | . . . . . Crushed . | . . . . . Highest Temperature 220 | 70 136 206 220 16 Average Temperature 51 | 30 38 61 106 8 Received Heat Transfer 606 | . 117 75 . 414 Siege Activations . | . . . . . Martial Activations . | . . . . . Shielding Activations . | . . . . . Robots Disrupted . | . . . . . Combat Hostiles . | . . . . . Robots Corrupted . | . . . . . Combat Hostiles . | . . . . . Parts Fried . | . . . . . Impact Corruptions . | . . . . . Robots Melted . | . . . . . Combat Hostiles . | . . . . . Parts Melted 2 | . . 2 . . Heat Transferred 2035 | 222 1036 777 . . Parts Sabotaged . | . . . . . Parts Stolen . | . . . . . Parts Stripped . | . . . . . Power Chain Reactions . | . . . . . Alert | -11 -10 -10 -10 -9 ------- Run | Yrd Mat Min Exi Min Maximum Alert Level . | . . . . . Low Security (%) 100 | 100 100 100 . 100 Level 1 . | . . . . . Level 2 . | . . . . . Level 3 . | . . . . . Level 4 . | . . . . . Level 5 . | . . . . . High Security . | . . . . . Max Security . | . . . . . Peak Influence 124 | 5 107 124 . 75 Initial . | . . . . . Average 22 | . 37 14 . 15 Influence Increases 691 | 10 269 266 . 146 Destroy 0b10 Robot/C 440 | . 180 160 . 100 Destroy 0b10 Robot/NC 50 | 10 15 25 . . Destroy Leader 82 | . 42 10 . 30 Trap Triggered on 0b10 10 | . . 10 . . Successful Hack 5 | . . 5 . . Disable Machine 15 | . . 15 . . Destroy Structure 74 | . 17 41 . 16 Lose Combat Pursuer 15 | . 15 . . . Influence Decreases 661 | 10 269 154 112 116 Entered New Map 112 | . . . 112 . Time Decay 519 | 10 269 134 . 106 Lost Part 30 | . . 20 . 10 Squads Dispatched 3 | . 2 . . 1 Investigation 1 | . . . . 1 Extermination . | . . . . . Reinforcement 2 | . 2 . . . Assault . | . . . . . Garrison . | . . . . . Intercept . | . . . . . Searches Triggered . | . . . . . Construction Impeded . | . . . . . Haulers Reinforced . | . . . . . Active Scanning Responses . | . . . . . Cargo Convoy Interrupts . | . . . . . Stealth | -11 -10 -10 -10 -9 --------- Run | Yrd Mat Min Exi Min Distress Signals 1 | . 1 . . . Communications Jammed . | . . . . . Distress Signals . | . . . . . Times Spotted 40 | . 22 11 . 7 Peak Tracking Total 4 | . 4 3 . 3 Tactical Retreats 2 | . 1 1 . . Traps | -11 -10 -10 -10 -9 ------- Run | Yrd Mat Min Exi Min Traps Triggered 4 | . 4 . . . Indirectly . | . . . . . Trap Hack Attempts . | . . . . . Triggered . | . . . . . Disarmed . | . . . . . Reprogrammed . | . . . . . Reused 1 | . . 1 . . Traps Extracted . | . . . . . Installed 1 | . . 1 . . Triggered 1 | . . 1 . . Most Traps Carried 1 | . . 1 . . Machines | -11 -10 -10 -10 -9 ---------- Run | Yrd Mat Min Exi Min Machines Disabled 1 | . . 1 . . Max in Single Turn 1 | . . 1 . . Machines Repaired . | . . . . . Machines Dismantled . | . . . . . Machines Sabotaged . | . . . . . Overloaded Fab Kills . | . . . . . Hacking | -11 -10 -10 -10 -9 --------- Run | Yrd Mat Min Exi Min Machines Accessed 2 | . . 1 . 1 Terminals 1 | . . 1 . . Fabricators . | . . . . . Repair Stations . | . . . . . Recycling Units . | . . . . . Scanalyzers . | . . . . . Garrison Access . | . . . . . Total Hacks 2 | . . 1 . 1 Successful 2 | . . 1 . 1 Failed . | . . . . . Catastrophic . | . . . . . Database Lockouts . | . . . . . Manual . | . . . . . Terminals 1 | . . 1 . . Fabricators . | . . . . . Repair Stations . | . . . . . Recycling Units . | . . . . . Scanalyzers . | . . . . . Garrison Access . | . . . . . Terminal Hacks 2 | . . 1 . 1 Open Door 1 | . . . . 1 Zone Layout 1 | . . 1 . . Fabricator Hacks . | . . . . . Repair Station Hacks . | . . . . . Recycling Unit Hacks . | . . . . . Scanalyzer . | . . . . . Garrison Access Hacks . | . . . . . Unauthorized Hacks . | . . . . . Terminals . | . . . . . Fabricators . | . . . . . Repair Stations . | . . . . . Recycling Units . | . . . . . Scanalyzers . | . . . . . Garrison Access . | . . . . . Data Cores Recovered . | . . . . . Used . | . . . . . Hacking Detections . | . . . . . Full Trace Events . | . . . . . Feedback Events . | . . . . . Feedback Blocked . | . . . . . Robot Schematics Acquired . | . . . . . Robots Built . | . . . . . Authchips . | . . . . . Time . | . . . . . Total Robot Build Rating . | . . . . . Part Schematics Acquired . | . . . . . Parts Built . | . . . . . Authchips . | . . . . . Time . | . . . . . Total Part Build Rating . | . . . . . Part Studies Acquired . | . . . . . Parts Repaired . | . . . . . Time . | . . . . . Parts Recycled . | . . . . . Recycled Matter . | . . . . . Retrieved Matter . | . . . . . Retrieved Components . | . . . . . Parts Scanalyzed . | . . . . . Part Schematics Acquired . | . . . . . Parts Damaged . | . . . . . Bothacking | -11 -10 -10 -10 -9 ------------ Run | Yrd Mat Min Exi Min Used RIF Installer . | . . . . . Robots Hacked . | . . . . . Non-combat . | . . . . . Combat . | . . . . . Robot Hacks Applied . | . . . . . Relay Couplers Released . | . . . . . Fabnet Peak Effective % . | . . . . . Robots Rewired . | . . . . . Allies Hacked . | . . . . . Hacks Repelled . | . . . . . Allies | -11 -10 -10 -10 -9 -------- Run | Yrd Mat Min Exi Min Total Allies . | . . . . . Largest Group . | . . . . . Highest-Rated Group . | . . . . . Highest-Rated Ally . | . . . . . Total Orders . | . . . . . Ally Attacks . | . . . . . Total Damage . | . . . . . Kills . | . . . . . Allies Corrupted . | . . . . . Allies Melted . | . . . . . Intel | -11 -10 -10 -10 -9 ------- Run | Yrd Mat Min Exi Min Active Infowar (turns) 1941 | 18 1013 540 . 370 Seismic 1896 | 18 1013 540 . 325 Cloaking 352 | . . . . 352 Robot Analysis Total . | . . . . . Derelict Logs Recovered 2 | . . 1 . 1 Drone Launches . | . . . . . Drone Recoveries . | . . . . . Exploration | -11 -10 -10 -10 -9 ------------- Run | Yrd Mat Min Exi Min Turns Passed 3789 | 135 1013 1350 806 485 Spaces Moved 1972 | 63 465 725 475 244 Core 5 | 5 . . . . Treads 1967 | 58 465 725 475 244 Legs . | . . . . . Wheels . | . . . . . Hover . | . . . . . Flight . | . . . . . Fastest Speed 50 | 50 160 160 160 160 Average Speed 159 | 152 160 160 160 160 Slowest Speed 160 | 160 160 160 160 160 Overloaded Moves . | . . . . . Propulsion Burnouts . | . . . . . Robots Hopped . | . . . . . Potential Cave-ins . | . . . . . Cave-ins Triggered . | . . . . . Exploration Rate (%) 61 | 5 58 94 91 61 Regions Visited 4 Branch Regions 3 Pre-discovered Areas 1 | . . . . 1 Known Exits Taken 1 | . . 1 . . Unknown Exits Taken 3 | 1 1 . 1 . Scrap Searched 1 | . . 1 . . Spaces Dug . | . . . . . Terrain Destroyed 91 | . 18 48 9 16 Melee . | . . . . . Projectile 1 | . . 1 . . AOE 90 | . 18 47 9 16 Terrain Rammed . | . . . . . Walls Destroyed . | . . . . . Machines Disabled . | . . . . . Actions | -11 -10 -10 -10 -9 --------- Run | Yrd Mat Min Exi Min Total 2397 | 80 661 848 503 305 Wait 218 | . 128 66 . 24 Move 1968 | 62 464 724 474 244 Hop . | . . . . . Pick Up 19 | 1 10 3 4 1 Fast Attach 14 | 7 . 3 2 2 Attach 6 | . 2 1 1 2 Detach 3 | . 2 1 . . Swap 17 | . 6 3 6 2 Drop 23 | . 5 8 7 3 Fire 104 | 10 42 38 . 14 Melee 22 | . . . 9 13 Ram . | . . . . . Kick . | . . . . . Crush 2 | . 2 . . . Escape Stasis . | . . . . . Rewire . | . . . . . Trap 1 | . . 1 . . Miscellaneous . | . . . . . Route ------- -11/Scrapyard -10/Materials (discovered 3 exits: *Mat / *Min x2) -10/Mines (discovered 4 exits: *Mat x2 / *Exi / *Sub) -10/Exiles -9/Mines History --------- Turn | Location | Event 8 | -11/Scrapyard | Discovered new exit (range 16) 136 | -11/Scrapyard | Entered Materials 309 | -10/Materials | Build established: Mutant 403 | -10/Materials | Discovered new exit (range 16) 570 | -10/Materials | Discovered new exit (range 16) 840 | -10/Materials | Discovered new exit (range 9) 1149 | -10/Materials | Entered Mines 1249 | -10/Mines | Found a hidden stash of uninstalled traps 1375 | -10/Mines | Discovered new exit (range 7) 1487 | -10/Mines | Identified exit to Exiles 1508 | -10/Mines | Discovered new exit (range 8) 1677 | -10/Mines | Found DCF Scrap (12 items) 1677 | -10/Mines | Discovered new exit (range 4) 1714 | -10/Mines | YI-UF0 nonchalantly dropped a Grenade Launcher on the ground 1743 | -10/Mines | Identified exit to Materials 2119 | -10/Mines | Excavation squad dispatched 2119 | -10/Mines | A large section of the Mines collapsed 2307 | -10/Mines | Identified exit to Subcaves 2492 | -10/Mines | Deemed a non-threat by the Exiles lab entrance 2499 | -10/Mines | Entered Exiles 2499 | -10/Exiles | Found Exiles lab destroyed 3284 | -10/Exiles | Discovered new exit (range 14) 3305 | -10/Exiles | Entered Mines 3375 | -9/Mines | Met a Derelict shopkeep closing up shop 3379 | -9/Mines | Met a Derelict bent on vengeance 3658 | -9/Mines | Core integrity fell below 50% 3784 | -9/Mines | Core integrity fell below 20% 3790 | -9/Mines | Destroyed by G-34 Mercenary with Small Laser Last Messages --------------- 03562_ Acquired derelict log, extracted data. World map updated: -10/Materials. 03651_ Critical hit (Burn: +37). 03671_ G-47 Trooper suffers critical hit (Impale). 03671_ Destroyed Particle Gun. 03671_ Destroyed Lgt. Nuclear Core. 03671_ G-47 Trooper destroyed. 03675_ Acquired 44 matter. 03740_ Grenade Launcher destroyed. 03756_ Critical hit (Burn: +37). 03763_ Mak. Cloaking Device destroyed. 03768_ Imp. Ion Engine destroyed. 03771_ Lgt. Treads destroyed. 03778_ Sneak attack on R-06 Scavenger. 03778_ Destroyed Tractor Beam. 03781_ Seismic Detector destroyed. 03785_ Lgt. Treads destroyed. 03787_ Critical hit (Burn: +37). 03789_ G-47 Trooper destroyed. Map ----- +----------------------------------------------------+ | ?????????????????????????????????????????????????? | | ?????????????????????????????????????????????????? | | ?????????????????????????????????????????????????? | | ?????????????????????????????????????????????????? | | ?????????????????????????????????????????????????? | | ?????????????????????????????????????????????????? | | ?????????????????????????????????????????????????? | | ?????????????????????????????????????????????????? | | ??????????????????####???????????????????????????? | | ?????????????????? ????????????????????????????? | | ?????????????????? #????????????????????????????? | | ?????????????????? #???????????????????? ???????? | | ??????????????#### ###?????????????????# ??????? | | ?????????????## #?????????????????? ##????? | | ????????????## ##?????????????????? #???? | | ???????????## #### #?????????????? #??? | | ???????????# % $ ?????????????? ??? | | ???######?## #??? #???????????????? #?? | | ??## ### #???? #????????????????# ?? | | ??# #???? #????????????????# #? | | ??# #???# ###??????????????# # | | ??# ## #??? ???????????????# | | ??## #### ##????? #????????????????## | | ???## #??###### #???### #?????????????????## | | ????# #???????## #??##%[ #??????????????????## | | ????# ##???????# #### =@ #?????????????####?## | | ????# ##??????# g ##????????????#" ### | | ????# ##?????# g #????????????#" #X | | ????# ##????######### #????????????#" | | ????## ##???????????# #????????????#" / | | ?????## ############# ###??????????#" !# | | ??????## ???????????#"!### | | ???????## ??????????####?### | | ????????## # ########## #####??#???????????# | | ?????????#### #????????? ## ## #???????????# | | ????????????# #????????? # #???????????? | | ????????????# #?????????# ????????????? | | ??????????### #??????????# #?????????????? | | ??????????# #???????????# #?????????????? | | ??????????# ###???????????# #??????????????? | | ??????????# #????????????## #?????########## | | ??????????# #?????????#### #???# | | ??????????# #?????????# ##??????##### | | ??????????# #?????????# ##????????## # | | ???######## #?????????# ###### ##??????## # | | ???# #?????????# #????# ##?????# # | | ???# ##### ##??####???# #????# ##????# | | ???# #???# ##### ##??# #????## ##???## | | ???# #???# ##?# #?????## ###### | | ??## #???#### # ### #??????## | +----------------------------------------------------+ Best States ------------- Heat Dissipation 25 Energy Generation 12 Energy Capacity 265 Matter Stores 300 Matter Capacity 300 Sight Range 16 Terrain Scan Density 10 Cloak Strength 3 Evasion (%) 40 Targeting Accuracy 5 Recoil Reduction 2 Item Schematics ----------------- None Robot Schematics ------------------ None Fabricated ------------ Nothing Repaired ---------- Nothing Studied --------- None Alien Tech Used ----------------- None Achievements -------------- Ew, Corruption Maybe Next Time I'll Detach My Launcher Challenges ------------ None Game ------ Seed AngularGravmagGravjet Manual? 0 Play Time 00:26:49 Cumulative 16.6 hours Start 2026.04.26 @ 07:37:16 End 2026.04.26 @ 08:02:59 Sessions 1 Manual Loads 0 Difficulty Rogue Special Mode None Game No. 21 Rogue 5 Adventurer 16 Explorer 0 Win Type - Total 0 Types 0/0/0/0/0/0/0/0/0/0 Lore% 28 Gallery% 24 Achievement% 22 Wizard Run 0 Options --------- Layout 1 ASCII 0 Keyboard 0 Movement Mouse Keybinds 0 Fullscreen 1 Font 24/Smallcaps Map View 50x35 Zoom Use 0% Tactical HUD 1 Map Filters NONE Filters NONE Steam 1 RUN: 5ac5a191-1e18-42b4-8b53-dc4049382974